[Event "*** Titled Tuesday Blitz"]
[Site "Chess.com"]
[Date "2018.05.01"]
[Round "7"]
[White "el-reptiliano"]
[Black "savinspm"]
[Result "1-0"]
[WhiteElo "1719"]
[BlackElo "1986"]
[TimeControl "180+2"]
[EndTime "14:33:45 PDT"]
[Termination "el-reptiliano won by checkmate"]

1. d4 {[%clk 0:03:01.9]} 1... Nf6 {[%clk 0:02:59.1]} 2. c4 {[%clk 0:03:02.4]}
2... e6 {[%clk 0:03:00]} 3. Nf3 {[%clk 0:02:59.8]} 3... b6 {[%clk 0:02:56.6]} 4.
a3 {[%clk 0:02:59.3]} 4... Bb7 {[%clk 0:02:44]} 5. Nc3 {[%clk 0:02:58.8]} 5...
d6 {[%clk 0:02:39.9]} 6. Qc2 {[%clk 0:02:39.1]} 6... c5 {[%clk 0:02:31.5]} 7. e4
{[%clk 0:02:34.1]} 7... Nc6 {[%clk 0:02:30.7]} 8. Be3 {[%clk 0:02:24.4]} 8...
Be7 {[%clk 0:02:29.1]} 9. d5 {[%clk 0:02:15.5]} 9... Nb8 {[%clk 0:02:23.9]} 10.
h3 {[%clk 0:02:13.4]} 10... e5 {[%clk 0:02:19.5]} 11. Be2 {[%clk 0:02:08.5]}
11... O-O {[%clk 0:02:17.9]} 12. g4 {[%clk 0:02:06.2]} 12... Ne8 {[%clk
0:02:14.6]} 13. h4 {[%clk 0:02:01.2]} 13... a6 {[%clk 0:02:02.8]} 14. O-O-O
{[%clk 0:01:58.5]} 14... Bc8 {[%clk 0:02:01]} 15. Rdg1 {[%clk 0:01:52.4]} 15...
f6 {[%clk 0:01:53.8]} 16. h5 {[%clk 0:01:47.8]} 16... h6 {[%clk 0:01:52.9]} 17.
Nh4 {[%clk 0:01:48.4]} 17... Rf7 {[%clk 0:01:53]} 18. Nf5 {[%clk 0:01:49.4]}
18... Bf8 {[%clk 0:01:51.8]} 19. Qd2 {[%clk 0:01:46.6]} 19... Rb7 {[%clk
0:01:36.4]} 20. f4 {[%clk 0:01:41.7]} 20... Kf7 {[%clk 0:01:22.1]} 21. fxe5
{[%clk 0:01:38.6]} 21... dxe5 {[%clk 0:01:22.7]} 22. Bxh6 {[%clk 0:01:31.9]}
22... Bxf5 {[%clk 0:01:15.8]} 23. Bxg7 {[%clk 0:01:03.4]} 23... Bxg7 {[%clk
0:01:09.7]} 24. gxf5 {[%clk 0:01:01.4]} 24... Nd7 {[%clk 0:01:03.7]} 25. h6
{[%clk 0:01:01.7]} 25... Bh8 {[%clk 0:01:04.9]} 26. Bh5+ {[%clk 0:00:58.2]}
26... Ke7 {[%clk 0:01:04.1]} 27. d6+ {[%clk 0:00:46.5]} 27... Nxd6 {[%clk
0:01:04.4]} 28. Nd5+ {[%clk 0:00:40.3]} 28... Kf8 {[%clk 0:01:05.2]} 29. h7
{[%clk 0:00:35.3]} 29... Nxe4 {[%clk 0:00:39.1]} 30. Qh6+ {[%clk 0:00:33.6]}
30... Bg7 {[%clk 0:00:38.5]} 31. Qxg7# {[%clk 0:00:33.7]} 1-0

[Event "*** Titled Tuesday Blitz"]
[Site "Chess.com"]
[Date "2018.05.01"]
[Round "7"]
[White "Too_Stupid_To_Play"]
[Black "AndrewMcStone"]
[Result "1-0"]
[WhiteElo "2184"]
[BlackElo "2036"]
[TimeControl "180+2"]
[EndTime "14:33:46 PDT"]
[Termination "Too_Stupid_To_Play won on time"]

1. Nf3 {[%clk 0:03:01.9]} 1... Nf6 {[%clk 0:02:59.9]} 2. c4 {[%clk 0:03:02.1]}
2... g6 {[%clk 0:02:58.3]} 3. b3 {[%clk 0:03:02.7]} 3... Bg7 {[%clk 0:02:59.3]}
4. Bb2 {[%clk 0:03:04.6]} 4... O-O {[%clk 0:03:00.1]} 5. g3 {[%clk 0:03:06.2]}
5... c5 {[%clk 0:02:45.1]} 6. Bg2 {[%clk 0:03:06.1]} 6... Nc6 {[%clk 0:02:46]}
7. O-O {[%clk 0:03:07.2]} 7... d6 {[%clk 0:02:46.9]} 8. d4 {[%clk 0:03:06.1]}
8... cxd4 {[%clk 0:02:45]} 9. Nxd4 {[%clk 0:03:08]} 9... Bd7 {[%clk 0:02:44.5]}
10. Nc3 {[%clk 0:03:07.6]} 10... a6 {[%clk 0:02:41.1]} 11. Rc1 {[%clk
0:03:07.8]} 11... Rc8 {[%clk 0:02:31.8]} 12. Re1 {[%clk 0:03:08.2]} 12... Qa5
{[%clk 0:02:29]} 13. e4 {[%clk 0:02:51.1]} 13... Nxd4 {[%clk 0:02:03]} 14. Qxd4
{[%clk 0:02:50.7]} 14... Ng4 {[%clk 0:02:04.1]} 15. Qd2 {[%clk 0:02:22.2]} 15...
Qh5 {[%clk 0:01:59]} 16. h3 {[%clk 0:02:08.3]} 16... Ne5 {[%clk 0:01:58.3]} 17.
Qe2 {[%clk 0:02:08.7]} 17... Qxe2 {[%clk 0:01:51.5]} 18. Rxe2 {[%clk 0:02:10.6]}
18... Nd3 {[%clk 0:01:51.1]} 19. Nd5 {[%clk 0:01:48.8]} 19... Nxb2 {[%clk
0:00:57]} 20. Nxe7+ {[%clk 0:01:38.3]} 20... Kh8 {[%clk 0:00:58.4]} 21. Nxc8
{[%clk 0:01:38.9]} 21... Rxc8 {[%clk 0:00:59.7]} 22. Rd2 {[%clk 0:01:36.9]}
22... b5 {[%clk 0:00:26.6]} 23. Rxd6 {[%clk 0:01:30.7]} 23... Be6 {[%clk
0:00:18.3]} 24. f4 {[%clk 0:01:22]} 24... bxc4 {[%clk 0:00:16.8]} 25. f5 {[%clk
0:01:20.1]} 25... gxf5 {[%clk 0:00:11.2]} 26. exf5 {[%clk 0:01:21.7]} 26... Bxf5
{[%clk 0:00:07.8]} 27. bxc4 {[%clk 0:01:20.5]} 27... Nxc4 {[%clk 0:00:02.5]} 28.
Rxa6 {[%clk 0:01:13.1]} 28... Bd4+ {[%clk 0:00:03.4]} 29. Kh2 {[%clk 0:01:13.8]}
29... Kg7 {[%clk 0:00:03.6]} 30. Ra4 {[%clk 0:01:11.6]} 30... Be6 {[%clk
0:00:04.5]} 31. Bf1 {[%clk 0:01:11.5]} 1-0

[Event "*** Titled Tuesday Blitz"]
[Site "Chess.com"]
[Date "2018.05.01"]
[Round "7"]
[White "tteshan"]
[Black "ChessicallyInclined"]
[Result "0-1"]
[WhiteElo "1987"]
[BlackElo "2216"]
[TimeControl "180+2"]
[EndTime "14:33:55 PDT"]
[Termination "ChessicallyInclined won by resignation"]

1. d4 {[%clk 0:03:01.9]} 1... Nf6 {[%clk 0:03:00.5]} 2. c4 {[%clk 0:03:03.1]}
2... g6 {[%clk 0:03:01.3]} 3. Nc3 {[%clk 0:03:04.3]} 3... Bg7 {[%clk 0:03:02.6]}
4. e4 {[%clk 0:03:05.1]} 4... O-O {[%clk 0:03:03.8]} 5. Be2 {[%clk 0:03:06.4]}
5... d6 {[%clk 0:03:04.9]} 6. Bg5 {[%clk 0:03:06.1]} 6... Na6 {[%clk 0:03:04.4]}
7. Qd2 {[%clk 0:03:03.6]} 7... Qe8 {[%clk 0:02:41.8]} 8. h4 {[%clk 0:02:59.6]}
8... e5 {[%clk 0:02:40.5]} 9. d5 {[%clk 0:03:00.5]} 9... Nc5 {[%clk 0:02:40.3]}
10. f3 {[%clk 0:03:00.9]} 10... Nh5 {[%clk 0:02:36.6]} 11. Be3 {[%clk
0:02:55.7]} 11... f5 {[%clk 0:02:33]} 12. Bf2 {[%clk 0:02:43.2]} 12... fxe4
{[%clk 0:02:30.3]} 13. fxe4 {[%clk 0:02:44.5]} 13... Nf4 {[%clk 0:02:28.7]} 14.
g3 {[%clk 0:02:39.7]} 14... Nxe2 {[%clk 0:02:25.2]} 15. Ngxe2 {[%clk 0:02:39.9]}
15... Bg4 {[%clk 0:02:20.8]} 16. Rf1 {[%clk 0:02:36.8]} 16... Bf3 {[%clk
0:02:19.6]} 17. Bxc5 {[%clk 0:02:33]} 17... dxc5 {[%clk 0:02:21.5]} 18. Qe3
{[%clk 0:02:32.8]} 18... Bg2 {[%clk 0:02:20.1]} 19. Rxf8+ {[%clk 0:02:29.6]}
19... Qxf8 {[%clk 0:02:20.7]} 20. Qf2 {[%clk 0:02:28.5]} 20... Bh3 {[%clk
0:02:18.5]} 21. Qxf8+ {[%clk 0:02:16.5]} 21... Rxf8 {[%clk 0:02:19.7]} 22. Kd2
{[%clk 0:02:10.3]} 22... Bh6+ {[%clk 0:02:19.3]} 23. Kc2 {[%clk 0:02:07.6]}
23... Rf2 {[%clk 0:02:14.7]} 24. Re1 {[%clk 0:02:03.5]} 24... Bg4 {[%clk
0:02:11.8]} 25. a3 {[%clk 0:01:58.7]} 25... a5 {[%clk 0:02:03.2]} 26. Kd3 {[%clk
0:01:59.3]} 26... Rf3+ {[%clk 0:01:56.3]} 27. Kc2 {[%clk 0:01:59]} 27... Be3
{[%clk 0:01:57.8]} 28. Nb5 {[%clk 0:01:43]} 28... Bf2 {[%clk 0:01:54]} 29. Rf1
{[%clk 0:01:42.6]} 29... Rf7 {[%clk 0:01:44.2]} 30. Nec3 {[%clk 0:01:32.5]}
30... Bxg3 {[%clk 0:01:40.8]} 31. Rxf7 {[%clk 0:01:32.7]} 31... Kxf7 {[%clk
0:01:42.7]} 32. Nxc7 {[%clk 0:01:33.2]} 32... Bxh4 {[%clk 0:01:43.1]} 33. d6
{[%clk 0:01:30.2]} 33... Bd8 {[%clk 0:01:41.4]} 34. N3d5 {[%clk 0:01:25.9]}
34... h5 {[%clk 0:01:37.8]} 35. Kd2 {[%clk 0:01:18.9]} 35... h4 {[%clk 0:01:38]}
36. Ke3 {[%clk 0:01:18.6]} 36... h3 {[%clk 0:01:37]} 37. Kf2 {[%clk 0:01:19.6]}
37... Bh4+ {[%clk 0:01:35.7]} 38. Kg1 {[%clk 0:01:19.9]} 38... Bg3 {[%clk
0:01:36.5]} 39. Ne3 {[%clk 0:01:11.4]} 39... h2+ {[%clk 0:01:35.7]} 40. Kh1
{[%clk 0:01:12.1]} 40... Bf3+ {[%clk 0:01:36.6]} 41. Ng2 {[%clk 0:01:13.5]}
41... Bxe4 {[%clk 0:01:34.2]} 42. Nb5 {[%clk 0:01:05.4]} 42... Ke6 {[%clk
0:01:29.5]} 43. Nc3 {[%clk 0:01:06.2]} 43... Bc6 {[%clk 0:01:26.5]} 44. Ne2
{[%clk 0:01:04.1]} 44... Bf4 {[%clk 0:01:23.8]} 45. Nxf4+ {[%clk 0:01:03.7]}
45... exf4 {[%clk 0:01:25.7]} 46. Kxh2 {[%clk 0:01:05.1]} 46... Bxg2 {[%clk
0:01:27.1]} 47. Kxg2 {[%clk 0:01:02]} 47... Kxd6 {[%clk 0:01:28.2]} 48. Kf3
{[%clk 0:01:03.7]} 48... Ke5 {[%clk 0:01:29.2]} 49. b3 {[%clk 0:01:03.5]} 49...
Kf5 {[%clk 0:01:28.7]} 0-1

[Event "*** Titled Tuesday Blitz"]
[Site "Chess.com"]
[Date "2018.05.01"]
[Round "7"]
[White "tigra"]
[Black "Korchmar_Vasiliy"]
[Result "0-1"]
[WhiteElo "2710"]
[BlackElo "2722"]
[TimeControl "180+2"]
[EndTime "14:33:58 PDT"]
[Termination "Korchmar_Vasiliy won by resignation"]

1. e4 {[%clk 0:03:01.9]} 1... c5 {[%clk 0:03:01.1]} 2. Qh5 {[%clk 0:03:01.8]}
2... d6 {[%clk 0:02:39.1]} 3. f4 {[%clk 0:02:57.2]} 3... Nc6 {[%clk 0:02:34.1]}
4. Bb5 {[%clk 0:02:52.5]} 4... Nf6 {[%clk 0:02:32.3]} 5. Qf3 {[%clk 0:02:53.3]}
5... Bd7 {[%clk 0:02:30.8]} 6. Ne2 {[%clk 0:02:53.3]} 6... g6 {[%clk 0:02:31.7]}
7. b3 {[%clk 0:02:53]} 7... Bg7 {[%clk 0:02:32.7]} 8. Bb2 {[%clk 0:02:53.9]}
8... O-O {[%clk 0:02:29.6]} 9. e5 {[%clk 0:02:50.1]} 9... dxe5 {[%clk
0:02:28.5]} 10. fxe5 {[%clk 0:02:51.1]} 10... Nxe5 {[%clk 0:02:26.9]} 11. Bxe5
{[%clk 0:02:50.8]} 11... Bxb5 {[%clk 0:02:28.3]} 12. Nbc3 {[%clk 0:02:51.5]}
12... Bc6 {[%clk 0:02:26.9]} 13. Qh3 {[%clk 0:02:49.6]} 13... b5 {[%clk
0:02:25.3]} 14. Rf1 {[%clk 0:02:38.4]} 14... b4 {[%clk 0:02:21.2]} 15. Nd1
{[%clk 0:02:34.6]} 15... Qd5 {[%clk 0:02:20.3]} 16. Bxf6 {[%clk 0:02:34.4]}
16... Bxf6 {[%clk 0:02:21.2]} 17. Ne3 {[%clk 0:02:34.8]} 17... Qd8 {[%clk
0:02:00.2]} 18. O-O-O {[%clk 0:02:34.1]} 18... a5 {[%clk 0:01:58.7]} 19. Ng4
{[%clk 0:02:31.6]} 19... Bg7 {[%clk 0:01:59.7]} 20. Nh6+ {[%clk 0:02:32]} 20...
Kh8 {[%clk 0:02:00.5]} 21. Nxf7+ {[%clk 0:02:30.1]} 21... Rxf7 {[%clk
0:02:01.1]} 22. Rxf7 {[%clk 0:02:31.1]} 22... a4 {[%clk 0:01:53.2]} 23. Nf4
{[%clk 0:02:10]} 23... Qd4 {[%clk 0:01:47.3]} 24. c3 {[%clk 0:01:58.8]} 24...
bxc3 {[%clk 0:01:48.1]} 25. dxc3 {[%clk 0:00:46]} 25... Qe4 {[%clk 0:01:43.1]}
26. Qe6 {[%clk 0:00:15.2]} 26... axb3 {[%clk 0:01:28.8]} 27. Qxe4 {[%clk
0:00:16.2]} 27... Bxe4 {[%clk 0:01:29]} 28. axb3 {[%clk 0:00:16.6]} 28... Bxc3
{[%clk 0:01:27.8]} 29. Nd3 {[%clk 0:00:07.3]} 29... Ra2 {[%clk 0:01:13.2]} 30.
Rxe7 {[%clk 0:00:07.4]} 30... Bf5 {[%clk 0:01:12.3]} 31. Rc7 {[%clk 0:00:08]}
31... Bd4 {[%clk 0:01:04.5]} 32. Rd2 {[%clk 0:00:07]} 32... Be3 {[%clk
0:01:04.2]} 0-1

[Event "*** Titled Tuesday Blitz"]
[Site "Chess.com"]
[Date "2018.05.01"]
[Round "7"]
[White "Oleksandr_Bortnyk"]
[Black "Sven_Tica"]
[Result "1-0"]
[WhiteElo "2785"]
[BlackElo "2642"]
[TimeControl "180+2"]
[EndTime "14:34:18 PDT"]
[Termination "Oleksandr_Bortnyk won by resignation"]

1. d4 {[%clk 0:02:59.3]} 1... Nf6 {[%clk 0:03:00.7]} 2. Nc3 {[%clk 0:02:59.8]}
2... d5 {[%clk 0:03:00.5]} 3. Bf4 {[%clk 0:03:00.3]} 3... c6 {[%clk 0:02:56.1]}
4. e3 {[%clk 0:03:01.3]} 4... Bf5 {[%clk 0:02:56.7]} 5. Nf3 {[%clk 0:02:58.9]}
5... h6 {[%clk 0:02:53.6]} 6. Bd3 {[%clk 0:02:53.3]} 6... Bxd3 {[%clk
0:02:51.4]} 7. cxd3 {[%clk 0:02:55.2]} 7... e6 {[%clk 0:02:52.5]} 8. e4 {[%clk
0:02:49.8]} 8... g5 {[%clk 0:02:50.1]} 9. Be3 {[%clk 0:01:26]} 9... Bg7 {[%clk
0:02:49.3]} 10. h4 {[%clk 0:01:25]} 10... Ng4 {[%clk 0:02:47.3]} 11. Bd2 {[%clk
0:01:21.2]} 11... e5 {[%clk 0:01:55.1]} 12. dxe5 {[%clk 0:00:43]} 12... Nxe5
{[%clk 0:01:47.7]} 13. Nxe5 {[%clk 0:00:44]} 13... Bxe5 {[%clk 0:01:49.3]} 14.
hxg5 {[%clk 0:00:45.9]} 14... d4 {[%clk 0:01:23.1]} 15. Na4 {[%clk 0:00:23.2]}
15... Nd7 {[%clk 0:01:17.2]} 16. b3 {[%clk 0:00:05.2]} 16... hxg5 {[%clk
0:01:13]} 17. Rxh8+ {[%clk 0:00:07.1]} 17... Bxh8 {[%clk 0:01:14.4]} 18. Qh5
{[%clk 0:00:08.7]} 18... Bf6 {[%clk 0:01:15.6]} 19. O-O-O {[%clk 0:00:09.7]}
19... Qe7 {[%clk 0:01:14.8]} 20. g3 {[%clk 0:00:10.4]} 20... O-O-O {[%clk
0:01:10.4]} 21. Nb2 {[%clk 0:00:06.3]} 21... Ne5 {[%clk 0:01:05.6]} 22. f4
{[%clk 0:00:05.5]} 22... Ng6 {[%clk 0:00:54.6]} 23. e5 {[%clk 0:00:04.3]} 23...
Bg7 {[%clk 0:00:55.9]} 24. Re1 {[%clk 0:00:04.6]} 24... Rh8 {[%clk 0:00:43.6]}
25. Qg4+ {[%clk 0:00:05.4]} 25... Qd7 {[%clk 0:00:45.2]} 26. Qxg5 {[%clk
0:00:05.7]} 26... Qe7 {[%clk 0:00:40.2]} 27. Qg4+ {[%clk 0:00:04.4]} 27... Qd7
{[%clk 0:00:40.1]} 28. e6 {[%clk 0:00:04.8]} 28... Qd6 {[%clk 0:00:35.5]} 29.
e7+ {[%clk 0:00:05.8]} 29... Kc7 {[%clk 0:00:32.5]} 30. e8=Q {[%clk 0:00:07]}
30... Rxe8 {[%clk 0:00:34]} 31. Rxe8 {[%clk 0:00:08.1]} 31... Qa3 {[%clk
0:00:35.6]} 32. Kb1 {[%clk 0:00:07.8]} 32... Kb6 {[%clk 0:00:34.7]} 33. Nc4+
{[%clk 0:00:08.2]} 33... Ka6 {[%clk 0:00:36.2]} 34. Nxa3 {[%clk 0:00:09.4]} 1-0

[Event "*** Titled Tuesday Blitz"]
[Site "Chess.com"]
[Date "2018.05.01"]
[Round "7"]
[White "Storne89"]
[Black "Margency"]
[Result "1-0"]
[WhiteElo "2535"]
[BlackElo "2528"]
[TimeControl "180+2"]
[EndTime "14:34:21 PDT"]
[Termination "Storne89 won by resignation"]

1. e4 {[%clk 0:03:01.6]} 1... c5 {[%clk 0:02:59.9]} 2. Nf3 {[%clk 0:03:02.2]}
2... d6 {[%clk 0:03:00.5]} 3. d4 {[%clk 0:03:03.7]} 3... cxd4 {[%clk 0:03:01.8]}
4. Nxd4 {[%clk 0:03:05.6]} 4... Nf6 {[%clk 0:03:03.1]} 5. Nc3 {[%clk 0:03:07.1]}
5... a6 {[%clk 0:03:04.4]} 6. h3 {[%clk 0:03:08.7]} 6... e6 {[%clk 0:03:04.7]}
7. g4 {[%clk 0:03:09.6]} 7... h6 {[%clk 0:03:05.4]} 8. Bg2 {[%clk 0:03:08.9]}
8... g5 {[%clk 0:03:06.1]} 9. Be3 {[%clk 0:03:08.6]} 9... Nbd7 {[%clk
0:03:07.2]} 10. O-O {[%clk 0:03:08.1]} 10... Ne5 {[%clk 0:03:06.5]} 11. a4
{[%clk 0:03:02.5]} 11... Be7 {[%clk 0:03:02.8]} 12. b3 {[%clk 0:02:51.8]} 12...
Ng6 {[%clk 0:03:02.1]} 13. Nde2 {[%clk 0:02:52]} 13... Nd7 {[%clk 0:02:59.6]}
14. f4 {[%clk 0:02:51.3]} 14... gxf4 {[%clk 0:02:59.6]} 15. Nxf4 {[%clk
0:02:53.2]} 15... Nxf4 {[%clk 0:02:54.9]} 16. Bxf4 {[%clk 0:02:54.4]} 16... Ne5
{[%clk 0:02:56]} 17. Qd2 {[%clk 0:02:54.8]} 17... Bg5 {[%clk 0:02:43.3]} 18. Ne2
{[%clk 0:02:52.3]} 18... Qe7 {[%clk 0:02:35.2]} 19. Rad1 {[%clk 0:02:51.9]}
19... Bd7 {[%clk 0:02:34.7]} 20. Qxd6 {[%clk 0:02:46.4]} 20... Qxd6 {[%clk
0:02:35.3]} 21. Rxd6 {[%clk 0:02:47.4]} 21... Bxf4 {[%clk 0:02:36]} 22. Nxf4
{[%clk 0:02:46.1]} 22... Ke7 {[%clk 0:02:35.7]} 23. Rd2 {[%clk 0:02:29.1]} 23...
Rac8 {[%clk 0:02:32.7]} 24. Rff2 {[%clk 0:01:57.9]} 24... b5 {[%clk 0:02:23.1]}
25. axb5 {[%clk 0:01:56.7]} 25... axb5 {[%clk 0:02:23.8]} 26. Nd3 {[%clk
0:01:58.2]} 26... Nxd3 {[%clk 0:02:14.9]} 27. Rxd3 {[%clk 0:01:58.9]} 27... Rc5
{[%clk 0:02:09.6]} 28. Rfd2 {[%clk 0:01:51.2]} 28... Bc6 {[%clk 0:02:08.2]} 29.
Kf2 {[%clk 0:01:34.7]} 29... Rc8 {[%clk 0:02:06.3]} 30. Ke3 {[%clk 0:01:25.6]}
30... Be8 {[%clk 0:01:57.2]} 31. Bf3 {[%clk 0:00:43.4]} 31... Rxc2 {[%clk
0:01:56.1]} 32. Rxc2 {[%clk 0:00:44.6]} 32... Rxc2 {[%clk 0:01:57.5]} 33. e5
{[%clk 0:00:43.9]} 33... b4 {[%clk 0:01:52.9]} 34. Be4 {[%clk 0:00:40.8]} 34...
Bb5 {[%clk 0:01:40.3]} 35. Rd7+ {[%clk 0:00:33.6]} 35... Kxd7 {[%clk 0:01:37.5]}
36. Bxc2 {[%clk 0:00:35.5]} 36... Kc6 {[%clk 0:01:35.4]} 37. Kd4 {[%clk
0:00:36.6]} 37... Kb6 {[%clk 0:01:36.2]} 38. h4 {[%clk 0:00:32.9]} 38... Be2
{[%clk 0:01:32.6]} 39. g5 {[%clk 0:00:30.2]} 39... hxg5 {[%clk 0:01:33.6]} 40.
hxg5 {[%clk 0:00:32.1]} 40... Bf1 {[%clk 0:01:27.5]} 41. Be4 {[%clk 0:00:31.8]}
41... Be2 {[%clk 0:01:26.3]} 42. Bh7 {[%clk 0:00:31.6]} 42... Bh5 {[%clk
0:01:24.1]} 43. Kc4 {[%clk 0:00:32.3]} 43... Ka5 {[%clk 0:01:24.5]} 44. Bg8
{[%clk 0:00:27]} 44... Be2+ {[%clk 0:01:23.6]} 45. Kc5 {[%clk 0:00:27.6]} 45...
Bh5 {[%clk 0:01:24.8]} 46. Kd6 {[%clk 0:00:27.8]} 46... Kb5 {[%clk 0:01:24.8]}
47. Ke7 {[%clk 0:00:29]} 47... Kc5 {[%clk 0:01:26.1]} 48. Bxf7 {[%clk
0:00:30.1]} 48... Bd1 {[%clk 0:01:23.4]} 49. Bxe6 {[%clk 0:00:31.1]} 49... Bc2
{[%clk 0:01:24.1]} 50. Kf6 {[%clk 0:00:31.4]} 1-0

[Event "*** Titled Tuesday Blitz"]
[Site "Chess.com"]
[Date "2018.05.01"]
[Round "7"]
[White "DrVelja"]
[Black "GMSrinath"]
[Result "0-1"]
[WhiteElo "2533"]
[BlackElo "2743"]
[TimeControl "180+2"]
[EndTime "14:34:28 PDT"]
[Termination "GMSrinath won by resignation"]

1. e4 {[%clk 0:03:01.9]} 1... c5 {[%clk 0:02:59.8]} 2. Nf3 {[%clk 0:03:03.1]}
2... d6 {[%clk 0:03:01.3]} 3. d4 {[%clk 0:03:04.6]} 3... cxd4 {[%clk 0:03:03.2]}
4. Nxd4 {[%clk 0:03:06.3]} 4... Nf6 {[%clk 0:03:04.5]} 5. Nc3 {[%clk 0:03:07.8]}
5... Nc6 {[%clk 0:03:06.1]} 6. Bg5 {[%clk 0:03:07.8]} 6... e6 {[%clk 0:03:06.3]}
7. Qd2 {[%clk 0:03:08.9]} 7... a6 {[%clk 0:03:07.3]} 8. O-O-O {[%clk 0:03:10.1]}
8... Be7 {[%clk 0:03:08.4]} 9. f3 {[%clk 0:03:07.5]} 9... O-O {[%clk 0:03:07.5]}
10. g4 {[%clk 0:02:59.9]} 10... Nxd4 {[%clk 0:02:50]} 11. Qxd4 {[%clk
0:02:59.1]} 11... b5 {[%clk 0:02:49.8]} 12. Kb1 {[%clk 0:02:50.7]} 12... Qa5
{[%clk 0:02:32.6]} 13. h4 {[%clk 0:02:21.9]} 13... b4 {[%clk 0:02:31.2]} 14. Ne2
{[%clk 0:02:20.4]} 14... e5 {[%clk 0:02:32.6]} 15. Qd2 {[%clk 0:02:16.1]} 15...
Be6 {[%clk 0:02:33.9]} 16. Nc1 {[%clk 0:01:47.3]} 16... Rfd8 {[%clk 0:02:30]}
17. Bxf6 {[%clk 0:01:20.1]} 17... Bxf6 {[%clk 0:02:31.9]} 18. g5 {[%clk
0:01:22]} 18... Be7 {[%clk 0:02:32.2]} 19. h5 {[%clk 0:01:23.9]} 19... d5 {[%clk
0:02:15.6]} 20. exd5 {[%clk 0:01:25.8]} 20... Bxd5 {[%clk 0:02:06.9]} 21. Bd3
{[%clk 0:00:33.9]} 21... Bxf3 {[%clk 0:02:06.9]} 22. Qf2 {[%clk 0:00:18.6]}
22... e4 {[%clk 0:01:20.5]} 23. Rhf1 {[%clk 0:00:15.8]} 23... Qc5 {[%clk
0:01:07.4]} 24. Qe1 {[%clk 0:00:11.8]} 24... Bxd1 {[%clk 0:00:40.9]} 25. Qxe4
{[%clk 0:00:12.1]} 25... Rxd3 {[%clk 0:00:41.6]} 26. Nxd3 {[%clk 0:00:05.7]}
26... Qxc2+ {[%clk 0:00:25.6]} 27. Ka1 {[%clk 0:00:06.9]} 27... Rc8 {[%clk
0:00:27.5]} 28. Qe3 {[%clk 0:00:04.9]} 28... Qe2 {[%clk 0:00:19]} 0-1

[Event "*** Titled Tuesday Blitz"]
[Site "Chess.com"]
[Date "2018.05.01"]
[Round "7"]
[White "LADIESGET2KNOWME"]
[Black "bascheyaro"]
[Result "0-1"]
[WhiteElo "2539"]
[BlackElo "2668"]
[TimeControl "180+2"]
[EndTime "14:34:30 PDT"]
[Termination "bascheyaro won by resignation"]

1. e4 {[%clk 0:03:01.9]} 1... e6 {[%clk 0:03:00.6]} 2. d4 {[%clk 0:03:03.2]}
2... d5 {[%clk 0:03:02.5]} 3. exd5 {[%clk 0:03:05.1]} 3... exd5 {[%clk
0:03:03.7]} 4. Nf3 {[%clk 0:03:07]} 4... Nf6 {[%clk 0:03:05.1]} 5. Bd3 {[%clk
0:03:07.8]} 5... c5 {[%clk 0:03:06.5]} 6. c4 {[%clk 0:03:06.3]} 6... dxc4 {[%clk
0:02:55.9]} 7. Bxc4 {[%clk 0:03:08.2]} 7... cxd4 {[%clk 0:02:55.3]} 8. Ng5
{[%clk 0:02:59.3]} 8... Bb4+ {[%clk 0:02:52]} 9. Nd2 {[%clk 0:02:49.4]} 9...
Qe7+ {[%clk 0:02:48.2]} 10. Qe2 {[%clk 0:02:43.8]} 10... Qxe2+ {[%clk
0:02:48.4]} 11. Kxe2 {[%clk 0:02:44.8]} 11... O-O {[%clk 0:02:49.2]} 12. Nb3
{[%clk 0:02:41]} 12... Nc6 {[%clk 0:02:49.9]} 13. Rd1 {[%clk 0:02:41.6]} 13...
h6 {[%clk 0:02:46.3]} 14. Nf3 {[%clk 0:02:32.7]} 14... Bg4 {[%clk 0:02:47.3]}
15. h3 {[%clk 0:02:33.1]} 15... Rfe8+ {[%clk 0:02:47.9]} 16. Kf1 {[%clk
0:02:34.5]} 16... Bxf3 {[%clk 0:02:48.9]} 17. gxf3 {[%clk 0:02:36.4]} 17... Rad8
{[%clk 0:02:49.8]} 18. Bf4 {[%clk 0:02:35.5]} 18... Bd6 {[%clk 0:02:45.3]} 19.
Bg3 {[%clk 0:02:29.1]} 19... Bxg3 {[%clk 0:02:22.5]} 20. fxg3 {[%clk 0:02:31]}
20... a6 {[%clk 0:02:20.5]} 21. Kf2 {[%clk 0:02:28.6]} 21... Rd6 {[%clk
0:02:20.1]} 22. Rd2 {[%clk 0:02:28]} 22... g5 {[%clk 0:01:47.4]} 23. Rad1 {[%clk
0:02:28.3]} 23... Red8 {[%clk 0:01:48.7]} 24. Nc5 {[%clk 0:02:21.1]} 24... b5
{[%clk 0:01:49.9]} 25. Bf1 {[%clk 0:02:13.9]} 25... Ra8 {[%clk 0:01:47.9]} 26.
Nb3 {[%clk 0:02:12]} 26... Rad8 {[%clk 0:01:46.3]} 27. Nc5 {[%clk 0:02:13.2]}
27... Ra8 {[%clk 0:01:19.3]} 28. Nb3 {[%clk 0:02:13.9]} 28... h5 {[%clk
0:01:11.1]} 29. Nxd4 {[%clk 0:02:10.2]} 29... Rad8 {[%clk 0:01:12]} 30. Nb3
{[%clk 0:02:09.9]} 30... Rxd2+ {[%clk 0:01:13]} 31. Rxd2 {[%clk 0:02:11.7]}
31... Rxd2+ {[%clk 0:01:13.4]} 32. Nxd2 {[%clk 0:02:13.6]} 32... Kf8 {[%clk
0:01:11.8]} 33. Nb3 {[%clk 0:02:13.7]} 33... Ke7 {[%clk 0:01:08.6]} 34. Nc5
{[%clk 0:02:14.8]} 34... Nb8 {[%clk 0:01:09.9]} 35. h4 {[%clk 0:01:53.6]} 35...
gxh4 {[%clk 0:01:08.6]} 36. gxh4 {[%clk 0:01:55.5]} 36... Kd6 {[%clk 0:01:10.1]}
37. Ne4+ {[%clk 0:01:51.2]} 37... Nxe4+ {[%clk 0:01:10.7]} 38. fxe4 {[%clk
0:01:53.1]} 38... Nd7 {[%clk 0:01:05.5]} 39. Ke3 {[%clk 0:01:46.8]} 39... Ke5
{[%clk 0:01:05.1]} 40. a4 {[%clk 0:01:46]} 40... bxa4 {[%clk 0:01:01.9]} 41.
Bxa6 {[%clk 0:01:47.1]} 41... Nc5 {[%clk 0:01:03.1]} 42. Be2 {[%clk 0:01:47.5]}
42... Nxe4 {[%clk 0:00:57.8]} 43. Bxh5 {[%clk 0:01:48.5]} 43... Nd6 {[%clk
0:00:59.2]} 44. Kd3 {[%clk 0:01:42.5]} 44... f5 {[%clk 0:00:52.5]} 45. Bd1
{[%clk 0:01:43.1]} 45... Ne4 {[%clk 0:00:52.2]} 46. h5 {[%clk 0:01:37.3]} 46...
Nf2+ {[%clk 0:00:50.7]} 47. Ke2 {[%clk 0:01:38.4]} 47... Nxd1 {[%clk 0:00:51.9]}
48. Kxd1 {[%clk 0:01:39.7]} 48... Kf6 {[%clk 0:00:53.3]} 49. Kc2 {[%clk
0:01:09.9]} 49... Kg5 {[%clk 0:00:54]} 50. b4 {[%clk 0:01:11.2]} 50... axb3+
{[%clk 0:00:54.3]} 51. Kxb3 {[%clk 0:01:12.7]} 51... Kxh5 {[%clk 0:00:55.9]} 52.
Kc2 {[%clk 0:01:14.6]} 52... Kg4 {[%clk 0:00:57.3]} 53. Kd2 {[%clk 0:01:16.3]}
53... Kf3 {[%clk 0:00:58.6]} 54. Ke1 {[%clk 0:01:17.8]} 54... Kg2 {[%clk
0:01:00.1]} 55. Ke2 {[%clk 0:01:19.3]} 55... f4 {[%clk 0:01:02]} 56. Ke1 {[%clk
0:01:20.8]} 56... f3 {[%clk 0:01:03.9]} 57. Kd2 {[%clk 0:01:22.7]} 57... f2
{[%clk 0:01:05.8]} 58. Ke3 {[%clk 0:01:24.6]} 58... f1=Q {[%clk 0:01:07.5]} 59.
Kd4 {[%clk 0:01:26.5]} 59... Kf3 {[%clk 0:01:08.5]} 60. Kc3 {[%clk 0:01:27.5]}
60... Ke4 {[%clk 0:01:09.8]} 61. Kb2 {[%clk 0:01:29.4]} 61... Kd4 {[%clk
0:01:10.9]} 62. Ka2 {[%clk 0:01:31.1]} 62... Kc4 {[%clk 0:01:12.1]} 63. Kb2
{[%clk 0:01:32.3]} 63... Qf2+ {[%clk 0:01:13.5]} 64. Ka3 {[%clk 0:01:33.5]}
64... Qg2 {[%clk 0:01:14.6]} 0-1